fUSD/lending_fUSD_20250923
["ID","MTS","AMOUNT","RATE_DAILY","PERIOD"]
[387162981,1758599483488,-487.38,0.00021078,2]
[387162982,1758599483499,-400.0,0.00021078,2]
[387162983,1758599483513,-400.0,0.00021078,2]
[387162984,1758599483524,-400.0,0.00021078,2]
[387162985,1758599483535,-690.14,0.00021078,2]
[387162986,1758599483547,-400.0,0.00021078,2]
[387162987,1758599483560,-400.0,0.00021078,2]
[387162988,1758599483572,-400.0,0.00021078,2]
[387162989,1758599483583,-635.76,0.00021078,2]
[387162990,1758599483595,-400.0,0.00021078,2]
[387162991,1758599483607,-449.64,0.00021078,2]
[387162992,1758599483617,-400.0,0.00021078,2]
[387162993,1758599483627,-699.58,0.00021078,2]
[387162994,1758599483637,-400.0,0.00021078,2]
[387162995,1758599483648,-400.0,0.00021078,2]
[387162996,1758599483657,-403.12650414,0.00021078,2]
[387162997,1758599483668,-520.49,0.00021078,2]
[387162998,1758599483678,-400.0,0.00021078,2]
[387162999,1758599483688,-400.0,0.00021078,2]
[387163000,1758599483698,-400.0,0.00021078,2]
[387163001,1758599483707,-492.93,0.00021078,2]
[387163002,1758599483717,-577.39,0.00021078,2]
[387163003,1758599483728,-583.63,0.00021078,2]
[387163004,1758599483738,-609.69,0.00021078,2]
[387163005,1758599483748,-266.60006881,0.00021078,2]
[387163006,1758599483757,-300.0,0.00021078,2]
[387163007,1758599483767,-158.54199819,0.00021079,2]
[387163008,1758599483776,-496.0,0.00021079,2]
[387163009,1758599483786,-203.81202595,0.00021079,2]
[387163010,1758599483796,-400.0,0.00021079,2]
[387163011,1758599483805,-341.14453844,0.00021079,2]
[387163012,1758599483815,-400.0,0.00021079,2]
[387163013,1758599483825,-400.0,0.00021079,2]
[387163014,1758599483835,-373.76229471,0.00021079,2]
[387163015,1758599483846,-400.0,0.00021079,2]
[387163016,1758599483856,-400.0,0.00021079,2]
[387163017,1758599483866,-403.1866636,0.00021079,2]
[387163018,1758599483878,-400.0,0.00021079,2]
[387163019,1758599483888,-400.0,0.00021079,2]
[387163020,1758599483898,-400.0,0.00021079,2]
[387163021,1758599483910,-366.3218983,0.00021079,2]
[387163022,1758599483921,-400.0,0.00021079,2]
[387163023,1758599483932,-400.0,0.00021079,2]
[387163024,1758599483942,-406.43261009,0.00021079,2]
[387163025,1758599483951,-400.0,0.00021079,2]
[387163026,1758599483961,-400.0,0.00021079,2]
[387163027,1758599483971,-400.0,0.00021079,2]
[387163028,1758599483980,-446.07519617,0.00021079,2]
[387163029,1758599483989,-400.0,0.00021079,2]
[387163030,1758599483999,-400.0,0.00021079,2]
[387163031,1758599484008,-400.0,0.00021079,2]
[387163032,1758599484018,-400.0,0.00021079,2]
[387163033,1758599484027,-400.0,0.00021079,2]
[387163034,1758599484036,-400.0,0.00021079,2]
[387163035,1758599484046,-400.0,0.00021079,2]
[387163036,1758599484055,-400.0,0.00021079,2]
[387163037,1758599484064,-400.0,0.00021079,2]
[387163038,1758599484073,-400.0,0.00021079,2]
[387163039,1758599484083,-666.0,0.00021079,2]
[387163040,1758599484092,-404.42217406,0.00021079,2]
[387163041,1758599484101,-400.0,0.00021079,2]
[387163042,1758599484110,-400.0,0.00021079,2]
[387163043,1758599484121,-526.11242572,0.00021079,2]
[387163044,1758599484131,-400.0,0.00021079,2]
[387163045,1758599484140,-400.0,0.00021079,2]
[387163046,1758599484149,-400.0,0.00021079,2]
[387163047,1758599484159,-288.92715691,0.00021079,2]
[387163048,1758599484168,-400.0,0.00021079,2]
[387163049,1758599484178,-400.0,0.00021079,2]
[387163050,1758599484187,-403.42880704,0.00021079,2]
[387163051,1758599484197,-400.0,0.00021079,2]
[387163052,1758599484207,-400.0,0.00021079,2]
[387163053,1758599484215,-300.0,0.00021079,2]
[387163054,1758599484225,-409.16,0.00021079,2]
[387163055,1758599484234,-403.89341752,0.00021079,2]
[387163056,1758599484244,-400.0,0.00021079,2]
[387163057,1758599484253,-400.0,0.00021079,2]
[387163058,1758599484262,-403.42170406,0.00021079,2]
[387163059,1758599484271,-400.0,0.00021079,2]
[387163060,1758599484280,-400.0,0.00021079,2]
[387163061,1758599484290,-400.0,0.00021079,2]
[387163062,1758599484299,-400.0,0.00021079,2]
[387163063,1758599484309,-175.42370127,0.00021079,2]
[387163064,1758599484319,-400.0,0.00021079,2]
[387163065,1758599484329,-533.6536379,0.00021079,2]
[387163066,1758599484339,-406.80286835,0.00021079,2]
[387163067,1758599484348,-400.0,0.00021079,2]
[387163068,1758599484357,-400.0,0.00021079,2]
[387163069,1758599484367,-400.0,0.00021079,2]
[387163070,1758599484376,-400.0,0.00021079,2]
[387163071,1758599484385,-400.0,0.00021079,2]
[387163072,1758599484394,-400.0,0.00021079,2]
[387163073,1758599484404,-400.0,0.00021079,2]
[387163074,1758599484413,-248.57885925,0.00021079,2]
[387163075,1758599484422,-400.0,0.00021079,2]
[387163076,1758599484431,-461.75,0.00021079,2]
[387163077,1758599484440,-402.31795505,0.00021079,2]
[387163078,1758599484450,-400.0,0.00021079,2]
[387163079,1758599484459,-400.0,0.00021079,2]
[387163080,1758599484468,-400.0,0.00021079,2]
[387163081,1758599484478,-400.0,0.00021079,2]
[387163082,1758599484487,-400.0,0.00021079,2]
[387163083,1758599484497,-306.98184428,0.00021079,2]
[387163084,1758599485247,-750.89355932,0.00019887,2]
[387163085,1758599485256,-161.868803,0.00019981,2]
[387163086,1758599485266,-400.0,0.00019982,2]
[387163087,1758599485275,-151.0,0.00019982,2]
[387163088,1758599485285,-471.41,0.00020256,2]
[387163089,1758599485294,-400.0,0.00020256,2]
[387163090,1758599485303,-400.0,0.00020256,2]
[387163091,1758599485313,-471.41,0.0002053,2]
[387163092,1758599485322,-549.14254433,0.0002053,2]
[387163093,1758599485331,-400.0,0.0002053,2]
[387163094,1758599485340,-471.41,0.00020804,2]
[387163095,1758599485350,-471.41,0.00021078,2]
[387163096,1758599485359,-141.90892343,0.00021079,2]
[387163097,1758599485368,-533.26,0.00021079,2]
[387163098,1758599485377,-400.0,0.00021079,2]
[387163099,1758599485387,-400.0,0.00021079,2]
[387163100,1758599485397,-211.19941941,0.00021079,2]
[387163101,1758599485406,-506.27,0.00021079,2]
[387163102,1758599485415,-400.0,0.00021079,2]
[387163103,1758599485425,-400.0,0.00021079,2]
[387163104,1758599485434,-400.0,0.00021079,2]
[387163105,1758599485443,-619.8,0.00021079,2]
[387163106,1758599485452,-400.0,0.00021079,2]
[387163107,1758599485461,-400.0,0.00021079,2]
[387163108,1758599485469,-400.0,0.00021079,2]
[387163109,1758599485479,-298.53386018,0.00021079,2]
[387163110,1758599485488,-400.0,0.00021079,2]
[387163111,1758599485498,-400.0,0.00021079,2]
[387163112,1758599485507,-400.0,0.00021079,2]
[387163113,1758599485516,-567.91,0.00021079,2]
[387163114,1758599485525,-452.15,0.00021079,2]
[387163115,1758599485534,-517.39,0.00021079,2]
[387163116,1758599485543,-400.0,0.00021079,2]
[387163117,1758599485555,-400.0,0.00021079,2]
[387163118,1758599485566,-400.0,0.00021079,2]
[387163119,1758599485575,-400.0,0.00021079,2]
[387163120,1758599485585,-400.0,0.00021079,2]
[387163121,1758599485595,-413.39,0.00021079,2]
[387163122,1758599485605,-400.0,0.00021079,2]
[387163123,1758599485616,-282.84670381,0.00021079,2]
[387163124,1758599485627,-400.0,0.00021079,2]
[387163125,1758599485638,-400.0,0.00021079,2]
[387163126,1758599485648,-280.59513454,0.00021079,2]
[387163127,1758599485659,-400.0,0.00021079,2]
[387163128,1758599485668,-440.34,0.00021079,2]
[387163129,1758599485678,-400.0,0.00021079,2]
[387163130,1758599485687,-400.0,0.00021079,2]
[387163131,1758599485696,-828.72,0.00021079,2]
[387163132,1758599485705,-400.0,0.00021079,2]
[387163133,1758599485714,-47.13549966,0.00021079,2]
[387163134,1758599485738,-488.70450034,0.00021079,2]
[387163135,1758599485747,-400.0,0.00021079,2]
[387163136,1758599485756,-149.63686938,0.00021079,2]
[387163137,1758599485776,-250.36313062,0.00021079,2]
[387163138,1758599485785,-21.1221849,0.00021079,2]
[387163139,1758599485862,-409.0978151,0.00021079,2]
[387163140,1758599485871,-400.0,0.00021079,2]
[387163141,1758599485881,-329.78991984,0.00021079,2]
[387163142,1758599485895,-70.21008016,0.00021079,2]
[387163143,1758599485904,-400.0,0.00021079,2]
[387163144,1758599485913,-400.0,0.00021079,2]
[387163145,1758599485923,-400.0,0.00021079,2]
[387163146,1758599485931,-400.0,0.00021079,2]
[387163147,1758599485941,-400.0,0.00021079,2]
[387163148,1758599485950,-400.0,0.00021079,2]
[387163149,1758599485959,-400.0,0.00021079,2]
[387163150,1758599485969,-400.0,0.00021079,2]
[387163151,1758599485978,-583.8,0.00021079,2]
[387163152,1758599485987,-400.0,0.00021079,2]
[387163153,1758599485996,-400.0,0.00021079,2]
[387163154,1758599486006,-400.0,0.00021079,2]
[387163155,1758599486016,-400.0,0.00021079,2]
[387163156,1758599486025,-400.0,0.00021079,2]
[387163157,1758599486035,-632.87,0.00021079,2]
[387163158,1758599486044,-400.0,0.00021079,2]
[387163159,1758599486054,-400.0,0.00021079,2]
[387163160,1758599486064,-400.0,0.00021079,2]
[387163161,1758599486074,-400.0,0.00021079,2]
[387163162,1758599486083,-400.0,0.00021079,2]
[387163163,1758599486094,-400.0,0.00021079,2]
[387163164,1758599486104,-276.74559683,0.00021079,2]
[387163165,1758599486114,-400.0,0.00021079,2]
[387163166,1758599486125,-400.0,0.00021079,2]
[387163167,1758599486134,-400.0,0.00021079,2]
[387163168,1758599486370,-400.0,0.00021079,2]
[387163169,1758599486380,-946.57,0.00021079,2]
[387163170,1758599486391,-405.73,0.00021079,2]
[387163171,1758599486400,-400.0,0.00021079,2]
[387163172,1758599486409,-409.57920081,0.00021079,2]
[387163173,1758599486419,-252.20952587,0.00021079,2]
[387163174,1758599486966,-400.0,0.00019981,2]
[387163175,1758599486975,-400.0,0.00019981,2]
[387163176,1758599486985,-400.0,0.00019982,2]
[387163177,1758599486994,-485.38,0.00019982,2]
[387163178,1758599487003,-151.0,0.00019983,2]
[387163179,1758599487012,-1068.53,0.00019983,2]
[387163180,1758599487021,-151.0,0.00019983,2]
[387163181,1758599487031,-400.0,0.00020256,2]
[387163182,1758599487040,-1068.53,0.00020257,2]
[387163183,1758599487049,-400.0,0.0002053,2]
[387163184,1758599487058,-1068.53,0.00020531,2]
[387163185,1758599487068,-500.209291,0.000208,2]
[387163186,1758599487078,-400.0,0.00020804,2]
[387163187,1758599487088,-1068.53,0.00020805,2]
[387163188,1758599487097,-405.46607812,0.00021078,2]
[387163189,1758599487106,-147.79047413,0.00021079,2]
[387163190,1758599487115,-400.0,0.00021079,2]
[387163191,1758599487127,-500.6215873,0.00021079,2]
[387163192,1758599487137,-400.0,0.00021079,2]
[387163193,1758599487147,-400.0,0.00021079,2]
[387163194,1758599487156,-370.79170594,0.00021079,2]
[387163195,1758599487166,-400.0,0.00021079,2]
[387163196,1758599487175,-400.0,0.00021079,2]
[387163197,1758599487185,-400.0,0.00021079,2]
[387163198,1758599487194,-1639.45,0.00021079,2]
[387163199,1758599487203,-406.79583604,0.00021079,2]
[387163200,1758599487213,-2055.47,0.00021079,2]
[387163201,1758599487223,-1291.07,0.00021079,2]
[387163202,1758599487232,-400.0,0.00021079,2]
[387163203,1758599487241,-1500.12,0.00021079,2]
[387163204,1758599487251,-400.0,0.00021079,2]
[387163205,1758599487261,-400.0,0.00021079,2]
[387163206,1758599487271,-1217.73,0.00021079,2]
[387163207,1758599487280,-400.0,0.00021079,2]
[387163208,1758599487290,-400.0,0.00021079,2]
[387163209,1758599487299,-400.0,0.00021079,2]
[387163210,1758599487308,-1110.27,0.00021079,2]
[387163211,1758599487325,-400.0,0.00021079,2]
[387163212,1758599487334,-400.0,0.00021079,2]
[387163213,1758599487343,-400.0,0.00021079,2]
[387163214,1758599487353,-400.0,0.00021079,2]
[387163215,1758599487364,-729.86,0.00021079,2]
[387163216,1758599487374,-400.0,0.00021079,2]
[387163217,1758599487384,-400.0,0.00021079,2]
[387163218,1758599487393,-681.6,0.00021079,2]
[387163219,1758599487402,-400.0,0.00021079,2]
[387163220,1758599487412,-400.0,0.00021079,2]
[387163221,1758599487421,-551.01,0.00021079,2]
[387163222,1758599487431,-562.71,0.00021079,2]
[387163223,1758599487440,-400.0,0.00021079,2]
[387163224,1758599487449,-400.0,0.00021079,2]
[387163225,1758599487459,-2433.58,0.00021079,2]
[387163226,1758599487468,-400.0,0.00021079,2]
[387163227,1758599487478,-400.0,0.00021079,2]
[387163228,1758599487487,-3698.27,0.00021079,2]
[387163229,1758599487496,-3927.52,0.00021079,2]
[387163230,1758599487505,-400.0,0.00021079,2]
[387163231,1758599487515,-418.6,0.00021079,2]
[387163232,1758599487524,-1467.03,0.00021079,2]
[387163233,1758599487533,-830.82,0.00021079,2]
[387163234,1758599487542,-258.04886753,0.00021079,2]
[387163235,1758599487551,-400.0,0.00021079,2]
[387163236,1758599487560,-842.57,0.00021079,2]
[387163237,1758599487570,-400.0,0.00021079,2]
[387163238,1758599487579,-320.53799851,0.00021079,2]
[387163239,1758599487588,-400.0,0.00021079,2]
[387163240,1758599487598,-314.31379294,0.00021079,2]
[387163241,1758599487607,-503.7,0.00021079,2]
[387163242,1758599487617,-452.55,0.00021079,2]
[387163243,1758599487627,-1208.87,0.00021079,2]
[387163244,1758599487637,-488.41,0.00021079,2]
[387163245,1758599487646,-1285.27,0.00021079,2]
[387163246,1758599487655,-626.43228566,0.00021079,2]
[387163247,1758599487664,-1331.96,0.00021079,2]
[387163248,1758599487674,-400.0,0.00021079,2]
[387163249,1758599487684,-2079.04,0.00021079,2]
[387163250,1758599487693,-400.0,0.00021079,2]
[387163251,1758599487703,-1332.64997449,0.00021079,2]
[387163252,1758599487723,-4.04002551,0.00021079,2]
[387163253,1758599487734,-354.76674027,0.00021079,2]
[387163254,1758599487878,-45.23325973,0.00021079,2]
[387163255,1758599487888,-2399.86560705,0.00021079,2]
[387163256,1758599487900,-532.03,0.00021079,2]
[387163257,1758599487923,-165.52439295,0.00021079,2]
[387163258,1758599487933,-400.0,0.00021079,2]
[387163259,1758599487943,-1068.53,0.00021079,2]
[387163260,1758599487951,-133.71425725,0.0002108,2]
[387163261,1758599487963,-366.28574275,0.0002108,2]
[387163262,1758599487972,-83.71425725,0.0002108,2]
[387163263,1758599488332,-500.0,0.00019982,2]
[387163264,1758599488341,-400.0,0.00019983,2]
[387163265,1758599488351,-189.05,0.00020257,2]
[387163266,1758599488362,-210.95,0.00020257,2]
[387163267,1758599488371,-432.29574275,0.0002108,2]
[387163268,1758599488380,-408.59,0.0002108,2]
[387163269,1758599488392,-500.0,0.0002108,2]
[387163270,1758599488401,-524.85061482,0.00021094,2]
[387163271,1758599488410,-272.63157993,0.00021094,2]
[387163272,1758599488419,-400.0,0.00021094,2]
[387163273,1758599488429,-400.0,0.00021094,2]
[387163274,1758599488438,-400.0,0.00021094,2]
[387163275,1758599488447,-400.0,0.00021094,2]
[387163276,1758599488456,-400.0,0.00021094,2]
[387163277,1758599488465,-299.46701673,0.00021094,2]
[387163278,1758599488506,-283.4999975,0.00019981,2]
[387163279,1758599488516,-400.0,0.00020531,2]
[387163280,1758599488527,-256.88298327,0.00021094,2]
[387163281,1758599488537,-689.52,0.00021094,2]
[387163282,1758599488546,-610.52,0.00021094,2]
[387163283,1758599488555,-6754.1,0.00021094,2]
[387163284,1758599488564,-400.0,0.00021094,2]
[387163285,1758599488574,-660.13,0.00021094,2]
[387163286,1758599488584,-765.23,0.00021094,2]
[387163287,1758599488594,-678.41,0.00021094,2]
[387163288,1758599488604,-977.52,0.00021094,2]
[387163289,1758599488613,-1027.79,0.00021094,2]
[387163290,1758599488624,-565.29,0.00021094,2]
[387163291,1758599488635,-725.67,0.00021094,2]
[387163292,1758599488645,-853.75,0.00021094,2]
[387163293,1758599488655,-480.0,0.00021094,2]
[387163294,1758599488665,-479.48,0.00021094,2]
[387163295,1758599488675,-400.0,0.00021094,2]
[387163296,1758599488684,-727.04,0.00021094,2]
[387163297,1758599488693,-644.89,0.00021094,2]
[387163298,1758599488702,-400.0,0.00021094,2]
[387163299,1758599488711,-8074.54555724,0.00021101,2]
[387163300,1758599488727,-302.0,0.00020805,2]
[387163301,1758599488741,-98.0,0.00020805,2]
[387163302,1758599488750,-471.58917747,0.00021101,2]
[387163303,1758599488761,-1981.94604549,0.00021101,2]
[387163304,1758599493243,-162.79229784,0.00019899,2]
[387163305,1758599493272,-300.0,0.0001998,2]
[387163306,1758599493298,-400.0,0.00019981,2]
[387163307,1758599493327,-400.0,0.00019981,2]
[387163308,1758599493353,-400.0,0.00019981,2]
[387163309,1758599493379,-400.0,0.00019981,2]
[387163310,1758599493406,-400.0,0.00019981,2]
[387163311,1758599493431,-400.0,0.00019981,2]
[387163312,1758599493455,-400.0,0.00019981,2]
[387163313,1758599493480,-400.0,0.00019982,2]
[387163314,1758599493504,-400.0,0.00019982,2]
[387163315,1758599493528,-400.0,0.00019982,2]
[387163316,1758599493553,-400.0,0.00019982,2]
[387163317,1758599493580,-519.46,0.00019982,2]
[387163318,1758599493606,-372.57630848,0.00019982,2]
[387163319,1758599493631,-400.0,0.00019982,2]
[387163320,1758599493657,-1000.0,0.00019982,2]
[387163321,1758599493682,-400.0,0.00019982,2]
[387163322,1758599493708,-101.17139368,0.00019982,2]
[387163323,1758599506630,350.0,0.00013699,2]
[387163324,1758599506655,150.0,0.00013699,2]
[387163325,1758599603262,2000.0,0.00024957,120]
[387163326,1758599603659,2000.0,0.00026248,120]
[387163327,1758599604110,2000.0,0.00027214,120]
[387163328,1758599604466,2000.0,0.0002818,120]
[387163329,1758599604855,2000.0,0.00029146,120]
[387163330,1758599605418,2000.0,0.00030099,120]
[387163331,1758599750530,263.4,0.0001939,30]
[387163332,1758600203967,2000.0,0.00024697,120]
[387163333,1758600204377,2000.0,0.00026248,120]
[387163334,1758600205521,2000.0,0.00027409,120]
[387163335,1758600205975,2000.0,0.00028569,120]
[387163336,1758600207064,2000.0,0.0002973,120]
[387163337,1758600226911,173.65,9.561e-05,2]
[387163338,1758600254792,227412.27309296,0.0003,120]
[387163339,1758600281244,150.0,0.00019139,7]
[387163349,1758600632391,-321.95118886,0.00019104,3]
[387163350,1758600632915,-344.04881114,0.00019104,3]
[387163353,1758600632925,-812.17,0.00019139,2]
[387163355,1758600632935,-2000.0,0.00019158,3]
[387163357,1758600632944,-250.0,0.00019178,2]
[387163359,1758600632954,-593.78118886,0.00019374,2]
[387163373,1758600638265,-428.62540544,0.00019374,2]
[387163374,1758600638277,-177.5934057,0.00019374,2]
[387163375,1758600638286,-3655.68235664,0.00019375,2]
[387163376,1758600638299,-1487.39764336,0.00019375,2]
[387163377,1758600638308,-530.87666909,0.0001939,2]
[387163378,1758600638320,-12745.2887953,0.0001939,2]
[387163379,1758600638332,-746.56453561,0.0001939,2]
[387163380,1758600638342,-81.19962959,0.00019453,3]
[387163409,1758600640170,-70.80037041,0.00019453,3]
[387163410,1758600640180,-6447.54634982,0.00019881,2]
[387163411,1758600640189,-585.62876996,0.00019881,2]
[387163412,1758600640199,-162.79229784,0.00019881,2]
[387163413,1758600640209,-248.71531821,0.00019969,2]
[387163414,1758600640219,-400.0,0.0001998,2]
[387163415,1758600640228,-400.0,0.0001998,2]
[387163416,1758600640238,-400.0,0.0001998,2]
[387163417,1758600640247,-400.0,0.0001998,2]
[387163418,1758600640257,-400.0,0.0001998,2]
[387163419,1758600640267,-400.0,0.0001998,2]
[387163420,1758600640277,-400.0,0.0001998,2]
[387163421,1758600640287,-400.0,0.0001998,2]
[387163422,1758600640299,-476.75,0.0001998,2]
[387163423,1758600640308,-400.0,0.0001998,2]
[387163424,1758600640318,-400.0,0.0001998,2]
[387163425,1758600640327,-400.0,0.0001998,2]
[387163426,1758600640337,-721.39,0.0001998,2]
[387163427,1758600640347,-400.0,0.0001998,2]
[387163428,1758600640356,-400.0,0.0001998,2]
[387163429,1758600640367,-400.0,0.0001998,2]
[387163430,1758600640376,-400.0,0.0001998,2]
[387163431,1758600640386,-578.74,0.0001998,2]
[387163432,1758600640396,-400.0,0.0001998,2]
[387163433,1758600640405,-400.0,0.0001998,2]
[387163434,1758600640415,-400.0,0.0001998,2]
[387163435,1758600640424,-902.84,0.0001998,2]
[387163436,1758600640433,-400.0,0.0001998,2]
[387163437,1758600640442,-400.0,0.0001998,2]
[387163438,1758600640452,-400.0,0.0001998,2]
[387163439,1758600640461,-574.19,0.0001998,2]
[387163440,1758600640470,-400.0,0.0001998,2]
[387163441,1758600640480,-400.0,0.0001998,2]
[387163442,1758600640489,-1034.97,0.0001998,2]
[387163443,1758600640499,-400.0,0.0001998,2]
[387163444,1758600640508,-400.0,0.0001998,2]
[387163445,1758600640517,-400.0,0.0001998,2]
[387163446,1758600640527,-400.0,0.0001998,2]
[387163447,1758600640537,-400.0,0.0001998,2]
[387163448,1758600640549,-776.53,0.0001998,2]
[387163449,1758600640558,-1128.59,0.0001998,2]
[387163450,1758600640569,-400.0,0.0001998,2]
[387163452,1758600640578,-400.0,0.0001998,2]
[387163454,1758600640588,-400.0,0.0001998,2]
[387163455,1758600640597,-400.0,0.0001998,2]
[387163456,1758600640607,-400.0,0.0001998,2]
[387163457,1758600640616,-400.0,0.0001998,2]
[387163459,1758600640626,-468.53,0.0001998,2]
[387163460,1758600640635,-400.0,0.0001998,2]
[387163461,1758600640645,-500.0,0.0001998,2]
[387163462,1758600640655,-583.93,0.0001998,2]
[387163463,1758600640664,-403.55702759,0.0001998,2]
[387163464,1758600640673,-1782.43,0.0001998,2]
[387163466,1758600640683,-400.0,0.0001998,2]
[387163468,1758600640692,-400.0,0.0001998,2]
[387163469,1758600640701,-400.0,0.0001998,2]
[387163470,1758600640711,-400.0,0.0001998,2]
[387163471,1758600640720,-426.33,0.0001998,2]
[387163472,1758600640729,-475.1,0.0001998,2]
[387163473,1758600640738,-400.0,0.0001998,2]
[387163474,1758600640747,-400.0,0.0001998,2]
[387163475,1758600640756,-400.0,0.0001998,2]
[387163476,1758600640766,-400.0,0.0001998,2]
[387163477,1758600640776,-400.0,0.0001998,2]
[387163478,1758600640785,-400.0,0.0001998,2]
[387163479,1758600640795,-152.994671,0.0001998,2]
[387163480,1758600640808,-400.0,0.0001998,2]
[387163481,1758600640817,-510.58,0.0001998,2]
[387163482,1758600640827,-558.34,0.0001998,2]
[387163483,1758600640836,-224.733488,0.0001998,2]
[387163484,1758600640846,-400.0,0.0001998,2]
[387163485,1758600640856,-400.0,0.00019981,2]
[387163486,1758600640866,-400.0,0.00019981,2]
[387163487,1758600640875,-400.0,0.00019981,2]
[387163488,1758600640885,-400.0,0.00019981,2]
[387163489,1758600640895,-432.09,0.00019981,2]
[387163490,1758600640904,-400.0,0.00019981,2]
[387163491,1758600640914,-400.0,0.00019981,2]
[387163492,1758600640923,-400.0,0.00019981,2]
[387163493,1758600640932,-400.0,0.00019981,2]
[387163494,1758600640942,-400.0,0.00019981,2]
[387163495,1758600640951,-400.0,0.00019981,2]
[387163496,1758600640960,-497.61,0.00019981,2]
[387163497,1758600640969,-400.0,0.00019981,2]
[387163498,1758600640978,-400.0,0.00019981,2]
[387163499,1758600640987,-400.0,0.00019981,2]
[387163500,1758600640996,-400.0,0.00019981,2]
[387163501,1758600641005,-400.0,0.00019981,2]
[387163502,1758600641014,-400.0,0.00019981,2]
[387163503,1758600641023,-400.0,0.00019981,2]
[387163504,1758600641032,-400.0,0.00019981,2]
[387163505,1758600641050,-400.0,0.00019981,2]
[387163506,1758600641060,-400.0,0.00019981,2]
[387163507,1758600641069,-400.0,0.00019981,2]
[387163508,1758600641079,-400.0,0.00019981,2]
[387163509,1758600641088,-400.0,0.00019981,2]
[387163510,1758600641098,-400.8044693,0.00019981,2]
[387163511,1758600641108,-400.0,0.00019981,2]
[387163512,1758600641117,-400.0,0.00019981,2]
[387163513,1758600641126,-500.0,0.00019981,2]
[387163514,1758600641135,-400.52587001,0.00019981,2]
[387163515,1758600641144,-400.0,0.00019981,2]
[387163516,1758600641153,-417.30294463,0.00019981,2]
[387163517,1758600641163,-400.0,0.00019981,2]
[387163518,1758600641172,-397.74680009,0.00019981,2]
[387163519,1758600641181,-400.0,0.00019981,2]
[387163520,1758600641191,-400.0,0.00019981,2]
[387163521,1758600641200,-400.0,0.00019981,2]
[387163522,1758600641209,-400.0,0.00019981,2]
[387163523,1758600641218,-400.0,0.00019981,2]
[387163524,1758600641228,-400.0,0.00019981,2]
[387163525,1758600641238,-516.18,0.00019981,2]
[387163526,1758600641248,-400.0,0.00019981,2]
[387163527,1758600641257,-400.0,0.00019981,2]
[387163528,1758600641267,-214.90826388,0.00019981,2]
[387163529,1758600641277,-400.0,0.00019981,2]
[387163530,1758600641286,-400.0,0.00019981,2]
[387163531,1758600641295,-400.0,0.00019981,2]
[387163532,1758600641308,-400.0,0.00019981,2]
[387163533,1758600641317,-400.0,0.00019981,2]
[387163534,1758600641614,-400.0,0.00019981,2]
[387163535,1758600641624,-400.0,0.00019981,2]
[387163536,1758600641633,-401.96672576,0.00019981,2]
[387163537,1758600641643,-161.63662494,0.00019981,2]
[387163538,1758600641652,-403.07228852,0.00019981,2]
[387163539,1758600641661,-512.4,0.00019981,2]
[387163540,1758600641671,-469.11,0.00019981,2]